bitfinex-derivatives/quotes_ETHF0:USTF0_20260201
["timestamp","ask_amount","ask_price","bid_price","bid_amount"]
[1769929425434,4.24498943,2416.5,2415.2,3.76874594]
[1769929425627,1.58929594,2416.2,2415.2,3.76874594]
[1769929425833,4.03783943,2416.1,2415.2,3.76874594]
[1769929426433,4.03783943,2416.1,2415.2,0.0033191]
[1769929426934,4.03783943,2415.8,2415.0,3.66866456]
[1769929427235,4.03783943,2416.0,2415.0,3.66866456]
[1769929427728,4.03783943,2416.0,2415.0,3.67195307]
[1769929443541,4.03783943,2415.7,2415.0,0.00328851]
[1769929443740,4.03783943,2415.4,2414.6,3.66866456]
[1769929444752,4.03783943,2415.4,2414.6,3.67237174]
[1769929444941,4.03783943,2415.6,2414.6,3.67237174]
[1769929445144,4.24504943,2415.8,2414.6,3.67237174]
[1769929445854,4.24504943,2415.8,2414.8,3.66866456]
[1769929446053,4.03783943,2415.8,2414.8,3.66866456]
[1769929446347,4.03783943,2416.0,2415.0,3.66866456]
[1769929447053,4.03783943,2416.0,2415.1,3.66866456]
[1769929450653,4.03783943,2416.0,2414.9,3.65729104]
[1769929450849,4.03783943,2416.0,2414.9,3.97771661]
[1769929451050,3.87809938,2415.7,2414.9,3.87749112]
[1769929451351,3.87809938,2415.4,2414.6,0.00370718]
[1769929451552,1.58929594,2415.2,2414.6,0.00370718]
[1769929451748,3.87809938,2415.1,2414.1,7.85491824]
[1769929451949,3.87809938,2415.1,2414.2,3.87720163]
[1769929452355,3.87809938,2415.1,2414.1,7.85491824]
[1769929452752,3.88232339,2415.1,2414.1,7.85947487]
[1769929453142,3.88232339,2415.1,2414.1,3.98227324]
[1769929453347,3.87809938,2414.8,2414.1,0.00455663]
[1769929454251,3.87809938,2414.8,2414.1,3.98227324]
[1769929454454,3.88232339,2415.1,2414.1,3.98227324]
[1769929454650,0.00422401,2415.1,2414.3,3.97771661]
[1769929456451,3.88232339,2415.1,2414.3,3.97771661]
[1769929456656,3.88232339,2415.1,2414.1,3.98227324]
[1769929458355,3.87809938,2414.9,2414.1,0.00455663]
[1769929459358,3.87809938,2414.9,2414.1,3.98227324]
[1769929459948,4.08959339,2415.1,2414.1,0.00455663]
[1769929464258,3.87809938,2414.9,2413.7,3.97771661]
[1769929465362,3.87809938,2414.9,2413.7,3.98142988]
[1769929468458,3.87809938,2414.9,2413.7,0.00371327]
[1769929468759,4.08540938,2414.6,2413.1,3.97771661]
[1769929469061,3.87809938,2414.4,2413.1,3.97771661]
[1769929469558,3.87809938,2414.4,2413.1,3.98246916]
[1769929469765,3.87809938,2414.2,2413.1,3.98246916]
[1769929469958,3.87809938,2414.2,2413.1,0.00475255]
[1769929470763,3.87809938,2414.2,2412.6,3.97771661]
[1769929471761,3.87809938,2414.2,2412.6,3.98152894]
[1769929472066,3.87809938,2413.7,2412.6,3.98152894]
[1769929472762,6.30909938,2413.6,2412.6,3.98152894]
[1769929473158,3.87809938,2413.5,2412.6,3.98152894]
[1769929473860,3.87809938,2413.5,2411.8,2.47402119]
[1769929474361,3.87809938,2412.9,2411.1,2.47402119]
[1769929474575,3.87809938,2412.7,2411.0,2.47402119]
[1769929474761,3.87809938,2412.7,2411.3,0.07215748]
[1769929474762,3.88129397,2412.7,2411.3,0.07215748]
[1769929474960,6.76409938,2412.6,2411.3,0.07215748]
[1769929475166,3.87809938,2412.5,2411.3,0.07215748]
[1769929475669,3.87809938,2412.4,2411.3,1.79302253]
[1769929476959,3.87809938,2412.4,2411.2,1.79753076]
[1769929477463,3.74757252,2412.2,2410.8,2.23535817]
[1769929477662,3.74757252,2412.2,2410.8,2.16318842]
[1769929478466,3.74757252,2412.2,2410.8,2.16709888]
[1769929479269,3.74757252,2412.5,2410.8,2.16709888]
[1769929487673,3.74757252,2412.5,2411.0,2.29483019]
[1769929487867,3.74757252,2412.5,2411.1,2.29483019]
[1769929488670,3.97801881,2412.7,2411.1,2.29483019]
[1769929490277,4.18548881,2412.7,2411.1,2.29483019]
[1769929491173,3.97482422,2412.4,2411.0,4.148]
[1769929491475,4.18241422,2411.4,2409.8,2.28005682]
[1769929491676,3.97482422,2411.2,2409.8,2.28005682]
[1769929491877,2.433,2411.3,2408.8,2.16087969]
[1769929491878,3.97482422,2410.8,2408.8,2.16087969]
[1769929492077,3.97482422,2410.4,2408.8,2.16087969]
[1769929492272,3.97482422,2410.2,2408.8,2.16087969]
[1769929492473,3.97929952,2410.2,2409.0,2.16087969]
[1769929492677,0.0044753,2410.2,2409.4,2.16087969]
[1769929492879,3.97482422,2410.5,2409.7,4.62812225]
[1769929493278,6.40782422,2411.5,2410.1,2.46724256]
[1769929493580,3.97482422,2411.4,2409.9,2.16087969]
[1769929493979,3.97861496,2411.4,2410.0,2.05846101]
[1769929494280,3.97861496,2411.4,2410.1,2.05846101]
[1769929494476,3.97861496,2411.4,2410.1,4.52570357]
[1769929495078,3.97861496,2411.4,2410.2,2.05846101]
[1769929495274,3.97861496,2411.4,2410.5,2.46724256]
[1769929495478,3.97861496,2411.4,2410.5,0.00524765]
[1769929498788,3.97861496,2411.4,2410.5,2.47249021]
[1769929498994,3.97861496,2411.4,2410.9,2.46724256]
[1769929499194,3.97861496,2411.4,2411.0,2.46724256]
[1769929499498,3.97861496,2411.4,2410.8,2.46724256]
[1769929499892,0.00379074,2411.4,2410.9,2.46724256]
[1769929500090,3.97482422,2411.7,2411.0,2.46724256]
[1769929500392,3.97482422,2411.7,2410.5,0.00524765]
[1769929500896,3.97482422,2411.7,2410.5,3.74165765]
[1769929501088,3.97920689,2411.7,2410.5,3.74165765]
[1769929501487,3.97920689,2411.7,2410.5,0.00524765]
[1769929501687,3.97482422,2411.5,2410.5,0.00524765]
[1769929502791,3.97482422,2411.5,2410.5,3.74165765]
[1769929502992,0.00438267,2411.7,2410.5,3.74165765]
[1769929503496,0.00438267,2411.7,2410.7,3.73641]
[1769929503894,0.20743,2413.2,2410.9,3.73641]
[1769929504200,4.15,2412.9,2411.0,3.73641]
[1769929504496,4.15,2412.9,2410.8,3.65729104]
[1769929504791,4.15,2412.9,2410.7,3.73641]
[1769929504792,0.2075,2412.4,2410.7,3.73641]
[1769929504991,2.434,2412.6,2410.9,3.73641]
[1769929505897,3.97482422,2412.5,2410.9,3.73641]
[1769929506289,3.97482422,2412.5,2411.0,3.73641]
[1769929507093,4.18231422,2412.5,2410.7,11.16224326]
[1769929507391,4.18231422,2412.5,2410.8,3.74133029]
[1769929510497,4.18231422,2412.5,2410.9,3.74133029]
[1769929512299,4.18231422,2412.5,2411.0,3.74133029]
[1769929512994,3.97482422,2412.5,2411.1,3.74133029]
[1769929513299,3.97482422,2412.5,2411.2,3.74133029]
[1769929513694,3.87172095,2412.8,2411.4,3.74133029]
[1769929513890,3.87172095,2412.8,2411.5,3.74133029]
[1769929515902,0.00526951,2412.9,2411.5,3.74133029]
[1769929516099,0.00526951,2412.9,2411.7,3.74133029]
[1769929516600,0.00526951,2412.9,2411.8,3.74133029]
[1769929516999,3.87172095,2413.4,2411.8,3.74133029]
[1769929517000,3.87172095,2413.4,2412.0,3.74133029]
[1769929518101,3.87588038,2413.4,2412.0,3.74133029]
[1769929518700,3.87588038,2413.4,2412.0,3.94886029]
[1769929518901,0.00415943,2413.4,2412.3,3.74133029]
[1769929519106,3.87172095,2413.7,2412.3,3.95175664]
[1769929519304,3.87172095,2413.7,2412.5,3.74133029]
[1769929519804,3.87172095,2414.1,2412.5,3.74133029]
[1769929520005,3.87462184,2414.1,2412.5,3.74133029]
[1769929520904,3.87172095,2413.6,2412.3,0.00292635]
[1769929522605,3.87172095,2413.6,2412.3,3.74425664]
[1769929524501,3.87172095,2414.0,2412.3,3.74425664]
[1769929524909,3.87172095,2414.0,2412.3,3.95175664]
[1769929525797,3.87172095,2414.0,2412.5,3.74133029]
[1769929525997,3.87172095,2414.0,2412.7,3.74133029]
[1769929526300,3.87462184,2414.1,2412.7,3.94880029]
[1769929526504,3.87462184,2414.1,2412.4,3.74133029]
[1769929527609,4.08197184,2414.1,2412.4,3.94882029]
[1769929533308,3.87172095,2413.9,2412.4,3.94882029]
[1769929537619,3.86871715,2413.6,2412.3,0.00292635]
[1769929538306,4.07610715,2413.6,2412.3,0.00292635]
[1769929538710,4.07610715,2413.6,2412.3,3.91956173]
[1769929539015,3.86871715,2413.5,2412.3,3.91956173]
[1769929541012,3.86871715,2414.0,2412.4,3.91663538]
[1769929541213,4.07608715,2414.0,2412.4,3.91663538]
[1769929541408,3.86871715,2413.8,2412.4,3.91663538]
[1769929542313,3.86871715,2413.8,2412.4,7.57392642]
[1769929542515,4.07609715,2413.8,2412.4,3.65729104]
[1769929542715,4.07609715,2413.8,2412.3,7.38193592]
[1769929543014,3.9729762,2413.3,2412.3,0.00292635]
[1769929543208,3.9729762,2412.9,2411.8,3.65729104]
[1769929543417,3.9729762,2412.9,2411.6,7.39743362]
[1769929544209,3.9729762,2412.9,2411.6,0.00389223]
[1769929545513,3.9729762,2412.6,2411.6,0.00389223]
[1769929546718,3.9729762,2412.4,2411.6,0.00389223]
[1769929546925,3.97644126,2412.4,2411.6,0.00389223]
[1769929547508,3.97644126,2412.4,2411.1,3.65729104]
[1769929547716,3.9729762,2412.1,2410.4,3.92953372]
[1769929548719,3.9729762,2412.1,2410.4,3.93249395]
[1769929553518,3.9729762,2411.9,2410.4,3.93249395]
[1769929553818,3.9729762,2411.7,2410.4,0.00296023]
[1769929554122,0.20755,2411.8,2410.4,0.00296023]
[1769929554123,3.9729762,2411.5,2410.4,0.00296023]
[1769929555217,3.9729762,2411.5,2409.8,3.92953372]
[1769929556221,4.1805662,2411.3,2409.8,3.93336995]
[1769929556422,4.1805662,2411.3,2409.8,0.00383623]
[1769929556823,3.9729762,2411.1,2409.8,0.00383623]
[1769929557322,4.1805862,2411.1,2409.8,0.00383623]
[1769929557524,0.20762,2411.0,2409.8,0.00383623]
[1769929557724,3.9729762,2410.5,2409.0,3.92953372]
[1769929558025,3.9729762,2410.3,2408.8,3.92953372]
[1769929558725,3.97723505,2410.3,2408.8,3.93410171]
[1769929561423,3.97723505,2410.3,2408.8,4.14191171]
[1769929561618,0.00425885,2410.3,2408.8,3.93410171]
[1769929561820,3.9729762,2410.8,2409.4,4.13728372]
[1769929562125,3.9729762,2411.3,2409.8,4.13725372]
[1769929562326,3.9729762,2411.3,2410.0,4.13723372]
[1769929562525,3.9729762,2411.3,2410.0,3.92953372]
[1769929562926,3.97805178,2411.3,2410.0,3.92953372]
[1769929563923,0.00507558,2411.3,2410.0,3.92953372]
[1769929564129,0.00507558,2411.3,2410.3,3.92953372]
[1769929566030,3.97805178,2411.3,2410.3,3.92953372]
[1769929566922,3.97805178,2411.3,2409.9,3.92953372]
[1769929569931,3.97805178,2411.3,2409.8,2.434]
[1769929570135,3.97805178,2411.3,2409.7,8.20197883]
[1769929570835,3.97805178,2411.3,2409.8,4.05097883]
[1769929573936,3.97805178,2411.3,2409.8,6.51945482]
[1769929574135,3.97805178,2411.3,2409.9,4.25868883]
[1769929574336,3.97805178,2411.3,2410.0,4.05097883]
[1769929574532,3.97805178,2411.3,2409.8,4.05097883]
[1769929574929,3.97805178,2411.3,2409.6,3.65729104]
[1769929575139,3.78378686,2410.1,2408.8,0.00456799]
[1769929575437,3.78378686,2410.0,2408.9,4.05097883]
[1769929577435,3.78378686,2410.0,2409.0,8.59811904]
[1769929577637,3.78378686,2409.9,2409.0,8.59811904]
[1769929578335,3.78378686,2409.9,2408.8,0.00456799]
[1769929578637,3.78378686,2409.9,2408.8,8.60268703]
[1769929579133,3.78378686,2409.3,2407.6,4.05097883]
[1769929579339,6.21878686,2409.3,2408.2,4.05097883]
[1769929579533,3.78378686,2409.2,2407.9,4.05097883]
[1769929579727,3.78378686,2409.2,2407.7,4.05097883]
[1769929579931,3.78378686,2409.2,2407.9,4.05097883]
[1769929580129,3.78378686,2409.0,2407.7,0.07226521]
[1769929580434,3.78378686,2409.0,2407.7,4.05097883]
[1769929580635,3.78378686,2409.0,2407.9,4.05097883]
[1769929581140,3.78378686,2409.0,2407.6,4.12324825]
[1769929581433,3.78378686,2409.0,2407.7,8.59811904]
[1769929581837,3.99157686,2409.0,2407.3,4.05097883]
[1769929582039,3.99157686,2409.0,2407.5,4.05097883]
[1769929582340,3.78378686,2408.7,2406.8,4.05097883]
[1769929582542,3.78378686,2408.7,2406.8,4.05505043]
[1769929583349,3.99162686,2408.4,2406.9,8.59811904]
[1769929583542,3.78378686,2408.2,2407.0,4.05097883]
[1769929583739,3.78378686,2408.0,2407.0,4.05097883]
[1769929583944,3.78378686,2407.9,2406.8,0.0040716]
[1769929584144,3.78378686,2407.9,2406.7,2.7022571]
[1769929584642,0.20788,2408.0,2406.9,3.70868252]
[1769929584840,2.436,2407.9,2406.5,0.07229959]
[1769929585142,2.436,2407.9,2406.7,3.70868252]
[1769929585344,4.154,2408.4,2407.1,3.70868252]
[1769929585544,3.98624732,2408.3,2406.7,3.70868252]
[1769929585747,2.436,2408.3,2406.5,0.07640998]
[1769929585938,2.436,2408.3,2406.9,3.70868252]
[1769929586139,2.436,2408.3,2407.0,4.05097883]
[1769929586448,1.55024732,2408.2,2406.5,0.07640998]
[1769929586640,1.55024732,2408.2,2407.0,3.70868252]
[1769929586843,0.20784,2408.4,2407.1,3.70868252]
[1769929587038,3.99162686,2408.4,2407.0,3.70868252]
[1769929587246,6.59862686,2408.4,2406.9,3.70868252]
[1769929587551,3.78378686,2408.3,2406.9,3.70868252]
[1769929587745,3.78378686,2408.3,2407.0,3.70868252]
[1769929587952,3.78378686,2408.3,2406.9,3.70868252]
[1769929588152,3.78378686,2408.3,2406.5,2.51240998]
[1769929588446,3.78378686,2408.3,2406.9,4.05097883]
[1769929588652,3.78378686,2408.2,2406.9,4.05097883]
[1769929588952,3.78378686,2408.2,2406.8,3.70868252]
[1769929588953,3.78378686,2408.2,2407.1,4.05097883]
[1769929589148,3.78378686,2408.8,2407.1,4.05097883]
[1769929589450,3.78378686,2408.8,2407.3,4.05097883]
[1769929589647,3.78378686,2408.8,2407.5,4.05097883]
[1769929589848,6.42856686,2409.1,2407.6,4.05097883]
[1769929590042,3.99156686,2409.1,2407.9,4.05097883]
[1769929590248,7.21356686,2409.1,2408.1,4.05097883]
[1769929590754,3.78378686,2409.1,2408.1,4.05097883]
[1769929591150,0.00372482,2409.2,2408.4,4.05097883]
[1769929591457,0.00372482,2409.2,2408.4,4.05628115]
[1769929591956,6.86778686,2409.7,2408.7,4.05097883]
[1769929592350,3.78378686,2409.7,2408.7,4.05097883]
[1769929592854,3.7870822,2409.7,2408.7,4.05097883]
[1769929593945,3.7870822,2409.7,2408.8,4.05097883]
[1769929594750,3.7870822,2409.7,2408.4,2.32e-06]
[1769929595154,2.0942622,2408.9,2407.0,0.20796]
[1769929595359,2.0942622,2408.5,2407.1,4.05097883]
[1769929595957,2.437,2408.4,2407.1,4.05097883]
[1769929596258,4.57518786,2408.4,2407.1,4.05471068]
[1769929596451,2.13818786,2408.3,2407.1,4.05471068]
[1769929597051,6.592,2408.2,2407.1,4.05471068]
[1769929597455,8.73332148,2408.2,2407.1,4.05471068]
[1769929597657,2.0552194,2408.1,2407.1,4.05471068]
[1769929598055,2.499,2408.0,2407.1,4.05471068]
[1769929598255,2.50233433,2408.0,2407.1,4.05471068]
[1769929598457,2.0552194,2407.9,2407.1,0.00373185]
[1769929598759,2.50233433,2408.0,2407.1,7.03e-06]
[1769929598961,0.00333433,2408.0,2407.1,3.81181848]
[1769929599356,2.437,2408.7,2407.1,3.81181848]
[1769929599557,2.23906309,2409.4,2407.1,3.81181848]
[1769929599755,9.571,2409.3,2407.3,3.81181145]
[1769929599952,2.437,2409.2,2407.5,3.81181145]
[1769929600150,2.23906309,2409.4,2407.5,4.01973145]
[1769929600460,0.2126281,2409.4,2407.5,4.01973145]
[1769929600656,0.0048681,2409.4,2407.7,3.81181145]
[1769929602355,0.20778,2409.2,2407.7,3.81181145]
[1769929602662,0.20782,2408.7,2407.1,7.03e-06]
[1769929602852,3.89529546,2408.9,2407.1,7.03e-06]
[1769929603056,6.33229546,2408.9,2407.1,7.03e-06]
[1769929603359,3.89529546,2408.9,2407.1,0.20795703]
[1769929603555,4.00719459,2409.2,2407.1,2.64495703]
[1769929603860,4.00719459,2409.2,2407.2,0.20794]
[1769929604055,4.00719459,2409.2,2407.3,0.20793]
[1769929604562,4.00719459,2409.2,2407.4,3.83726586]
[1769929604761,4.00719459,2409.1,2407.4,3.83726586]
[1769929605356,4.00719459,2409.0,2407.4,3.83726586]
[1769929605556,4.00719459,2408.9,2407.4,3.83726586]
[1769929605757,4.00719459,2408.8,2407.4,3.83726586]
[1769929606155,9.41919459,2408.8,2407.4,3.83726586]
[1769929606352,0.0048681,2409.4,2407.9,3.83726586]
[1769929606854,0.0048681,2409.4,2407.9,4.04514586]
[1769929607160,0.0048681,2409.4,2408.1,3.83726586]
[1769929611061,4.00719459,2409.9,2408.4,3.83726586]
[1769929611366,8.86397291,2410.1,2408.4,3.83726586]
[1769929611567,10.61297291,2410.1,2408.4,3.83726586]
[1769929611966,11.83097291,2410.1,2408.4,3.83726586]
[1769929612167,11.83418028,2410.1,2408.4,3.83726586]
[1769929612368,9.41440196,2410.1,2408.4,3.83726586]
[1769929612568,4.00719459,2410.0,2408.4,3.83726586]
[1769929612766,4.00719459,2410.0,2407.9,6.9103225]
[1769929612957,4.00719459,2410.0,2408.3,0.20785]
[1769929613164,4.00719459,2410.0,2408.3,2.64485]
[1769929613468,0.00320737,2410.1,2408.3,2.437]
[1769929613766,0.00320737,2410.1,2408.6,0.20782]
[1769929614169,4.01040196,2410.1,2408.6,0.20782]
[1769929614769,4.01040196,2410.1,2408.7,3.83726586]
[1769929614971,4.21809196,2410.1,2408.7,3.83726586]
[1769929615171,4.00719459,2410.0,2408.7,3.83726586]
[1769929617168,0.21089737,2410.1,2408.3,2.437]
[1769929617169,0.20774,2409.6,2408.3,3.83726586]
[1769929617370,0.20774,2409.6,2408.0,4.90526043]
[1769929617371,4.00719459,2409.4,2408.0,3.83726586]
[1769929617673,4.00719459,2409.2,2408.0,3.83726586]
[1769929618070,4.00719459,2409.2,2407.7,3.83726586]
[1769929618271,4.00719459,2409.1,2407.7,3.83726586]
[1769929619468,9.43919459,2409.0,2407.7,3.83726586]
[1769929619671,4.00719459,2409.0,2407.7,3.83726586]
[1769929619869,5.433,2409.1,2407.7,3.83726586]
[1769929620571,4.00719459,2409.2,2407.7,3.83726586]
[1769929621269,4.00719459,2409.2,2407.9,3.83726586]
[1769929621470,4.00719459,2409.4,2407.9,3.83726586]
[1769929627079,4.00719459,2409.4,2407.3,4.144]
[1769929627080,4.00719459,2409.1,2407.4,3.83726586]
[1769929627575,4.21497459,2409.1,2407.4,3.83726586]
[1769929627880,3.86000003,2409.0,2407.4,3.83726586]
[1769929628176,3.86000003,2408.8,2407.4,3.83726586]
[1769929630176,3.86000003,2408.6,2407.1,3.72032787]
[1769929630475,3.86000003,2408.5,2407.1,3.72032787]
[1769929631076,3.86000003,2408.4,2407.1,3.72032787]
[1769929631272,3.86425707,2408.4,2407.1,3.72032787]
[1769929633482,3.86425707,2408.4,2407.1,7.03e-06]
[1769929635284,3.86425707,2408.4,2407.1,3.72032787]
[1769929635482,3.86000003,2408.2,2407.1,3.72032787]
[1769929635986,3.86000003,2408.1,2407.1,3.72032787]
[1769929636575,3.86000003,2408.1,2407.1,7.03e-06]
[1769929641785,3.86000003,2408.1,2406.4,1.47889362]
[1769929642185,3.86000003,2408.1,2406.6,0.20799]
[1769929642786,3.86000003,2408.1,2406.6,0.21310664]
[1769929643783,3.86000003,2408.1,2406.7,2.69907574]
[1769929644090,3.86000003,2408.1,2406.7,2.90705574]
[1769929645586,4.06791003,2407.6,2406.6,0.00511664]
[1769929645785,4.06791003,2407.6,2406.1,2.70385938]
[1769929645786,3.86000003,2407.6,2406.1,2.70385938]
[1769929645982,3.86000003,2407.6,2406.3,2.91187938]
[1769929646288,3.86000003,2408.2,2406.6,2.91184938]
[1769929646486,3.86000003,2408.1,2406.6,2.91184938]
[1769929646696,3.86000003,2408.1,2406.6,2.91504177]
[1769929648594,3.86000003,2408.1,2406.8,2.7503832]
[1769929651991,3.86000003,2407.9,2406.6,0.00319239]
[1769929652192,3.86000003,2407.9,2406.6,2.69671223]
[1769929652394,3.86000003,2407.8,2406.6,2.69671223]
[1769929653694,3.86000003,2407.8,2406.6,0.00319239]
[1769929654297,3.86000003,2407.7,2406.6,0.00319239]
[1769929654497,3.86000003,2407.6,2406.6,0.00319239]
[1769929655398,3.86000003,2407.5,2406.6,0.00319239]
[1769929655598,3.86000003,2407.5,2405.9,3.71020664]
[1769929655799,3.86000003,2407.4,2406.0,2.6689433]
[1769929656097,0.20792,2407.6,2406.0,2.6689433]
[1769929656098,3.86000003,2407.2,2406.0,2.6689433]
[1769929656300,3.86000003,2407.2,2406.1,2.6689433]
[1769929656692,3.86000003,2407.2,2406.1,2.67237218]
[1769929658100,4.85777832,2407.7,2406.1,2.67237218]
[1769929658101,3.68883801,2407.5,2406.2,2.63875241]
[1769929658398,3.68883801,2407.5,2406.4,2.63875241]
[1769929659995,3.68883801,2407.8,2406.8,2.3817256]
[1769929661099,3.68883801,2407.8,2406.7,3.71020664]
[1769929661100,3.68883801,2407.8,2406.6,3.91819664]
[1769929661401,3.68883801,2407.8,2406.5,3.71020664]
[1769929662896,3.68883801,2407.8,2406.4,8.01520664]
[1769929663100,3.75046797,2407.7,2406.4,3.71020664]
[1769929663298,3.75046797,2407.7,2406.3,3.71020664]
[1769929663499,3.75046797,2407.7,2406.3,6.14979971]
[1769929663700,3.75046797,2407.7,2406.5,2.43959307]
[1769929664100,3.75046797,2407.7,2406.5,6.14979971]
[1769929665697,3.75046797,2407.7,2406.7,2.46543839]
[1769929665899,2.41977832,2408.0,2406.7,2.46543839]
[1769929665900,3.75046797,2408.0,2406.9,6.17564503]
[1769929666203,3.75046797,2408.0,2407.1,2.46543839]
[1769929666403,3.75046797,2408.3,2407.2,2.46543839]
[1769929668601,3.75046797,2408.3,2407.2,6.17564503]
[1769929668799,3.75046797,2408.3,2407.3,2.44780056]
[1769929669304,3.75046797,2408.3,2407.4,2.44780056]
[1769929672713,0.00425704,2408.4,2407.4,2.44780056]
[1769929672905,3.75472501,2408.4,2407.4,2.44780056]
[1769929674608,3.75046797,2408.0,2407.0,0.84826479]
[1769929674809,3.75046797,2407.7,2406.4,3.72376947]
[1769929679725,3.75046797,2407.5,2406.4,3.72376947]
[1769929680726,3.75046797,2406.5,2405.1,3.72376947]
[1769929680927,3.95851797,2406.0,2404.8,3.72376947]
[1769929681223,7.256,2406.4,2404.8,3.65176947]
[1769929681224,3.75046797,2406.4,2404.8,3.65176947]
[1769929681413,5.523,2406.8,2404.7,2.44893324]
[1769929681619,0.00382491,2406.8,2404.9,4.159]
[1769929681819,0.00382491,2406.8,2405.4,0.2081]
[1769929682022,0.00382491,2406.8,2405.5,2.5103162]
[1769929682325,0.00382491,2406.8,2405.7,0.0723162]
[1769929682520,0.00382491,2406.8,2405.5,2.438]
[1769929682723,0.00382491,2406.8,2406.1,0.0723162]
[1769929683323,3.75046797,2407.5,2405.8,0.20806]
[1769929683324,3.75046797,2407.5,2406.5,3.72376947]
[1769929684121,3.75536182,2407.5,2406.5,0.00349411]
[1769929686326,9.26836182,2407.5,2406.5,0.00349411]
[1769929686529,3.75046797,2407.4,2406.5,0.00349411]
[1769929691423,1.3603233,2406.5,2404.2,7.27219095]
[1769929691625,1.3603233,2406.5,2403.1,4.05463077]
[1769929691626,0.02837695,2404.6,2403.1,4.05463077]
[1769929691827,0.02837695,2404.4,2403.3,4.04044229]
[1769929692034,0.02837695,2404.4,2403.3,3.96153159]
[1769929692327,0.10728765,2404.2,2403.3,0.00304132]
[1769929692522,0.00527404,2404.4,2403.3,6.94109125]
[1769929692724,5.65928765,2405.1,2404.1,2.09461729]
[1769929692924,0.10728765,2405.5,2404.0,2.09461729]
[1769929693123,0.10728765,2405.5,2403.4,4.84343264]
[1769929693327,0.10728765,2405.5,2404.0,2.09461729]
[1769929693730,0.11071242,2405.5,2404.3,2.09461729]
[1769929693930,2.54871242,2405.5,2404.0,2.09461729]
[1769929694129,0.09673515,2405.4,2403.8,4.00626319]
[1769929694335,0.20818,2404.5,2403.6,4.00626319]
[1769929694630,2.439,2404.8,2403.8,4.00626319]
[1769929694833,2.717,2405.1,2404.0,4.00626319]
[1769929695039,0.00342477,2405.5,2404.5,4.00626319]
[1769929695229,0.09673515,2406.4,2405.4,6.10088048]
[1769929695536,0.09673515,2406.6,2405.5,8.84969583]
[1769929695727,0.09673515,2406.6,2404.4,4.05463077]
[1769929696235,5.558,2406.5,2404.9,4.05463077]
[1769929696637,5.558,2406.5,2405.2,4.05463077]
[1769929697135,5.558,2406.5,2405.3,8.89806341]
[1769929697331,0.20802,2406.4,2404.6,4.05463077]
[1769929697531,5.558,2406.5,2404.6,4.05463077]
[1769929697738,0.20809,2405.6,2404.4,0.00421089]
[1769929697929,2.439,2405.5,2404.4,8.9e-07]
[1769929698333,2.41421907,2405.4,2403.7,4.05463077]
[1769929698535,0.20816,2404.7,2403.1,4.05463077]
[1769929698734,7.863,2404.6,2403.1,4.05463077]
[1769929699034,0.20816,2404.7,2403.1,4.05463077]
[1769929699339,0.20816,2404.7,2403.3,4.05463077]
[1769929699533,2.64716,2404.7,2403.3,4.05463077]
[1769929699836,0.20817,2404.6,2403.5,4.05463077]
[1769929700031,2.439,2405.2,2403.5,4.05463077]
[1769929700233,0.00455473,2404.6,2403.6,4.84343264]
[1769929700431,0.00455473,2404.6,2403.7,4.05463077]
[1769929700640,0.00455473,2404.6,2403.9,6.14924806]
[1769929700833,0.00455473,2404.6,2403.9,4.05463077]
[1769929701033,0.00455473,2404.6,2403.6,4.05463077]
[1769929701839,0.21272473,2404.6,2403.5,4.05965272]
[1769929702131,0.00455473,2404.6,2403.7,4.05463077]
[1769929702337,0.00455473,2404.6,2403.9,6.14924806]
[1769929702535,0.00455473,2404.6,2403.9,4.05463077]
[1769929702837,9.77576113,2406.5,2403.5,0.00502195]
[1769929702838,2.59485546,2406.0,2404.5,6.14924806]
[1769929703033,2.59485546,2406.0,2404.7,4.05463077]
[1769929703034,0.20805,2406.0,2404.7,4.05463077]
[1769929703435,9.77576113,2406.5,2405.4,4.05463077]
[1769929703739,0.20792,2407.5,2405.4,4.05852471]
[1769929704039,9.91293,2407.4,2405.6,4.05463077]
[1769929704431,9.91293,2407.4,2405.8,4.05463077]
[1769929704741,4.37269477,2407.4,2405.8,4.05463077]
[1769929704936,4.535,2407.3,2405.8,4.05463077]
[1769929705135,4.535,2407.3,2405.9,4.05463077]
[1769929705330,4.535,2407.3,2406.0,4.05463077]
[1769929705937,4.535,2407.3,2406.1,8.89806341]
[1769929706134,0.00376477,2407.4,2406.2,4.05463077]
[1769929706336,0.00376477,2407.4,2406.5,4.05463077]
[1769929706535,0.00376477,2407.4,2406.4,2.09461729]
[1769929706536,3.015,2407.8,2406.7,4.05463077]
[1769929706736,0.20787,2408.1,2406.7,4.05463077]
[1769929706936,2.44,2407.8,2406.8,8.89806341]
[1769929707240,2.44,2407.8,2406.8,4.05463077]
[1769929707434,0.00484887,2407.8,2406.9,4.84343264]
[1769929707739,3.10284887,2407.8,2406.9,8.89806341]
[1769929708242,3.62590145,2407.7,2404.5,6.13805436]
[1769929708436,0.20799,2406.8,2403.9,0.20822]
[1769929708630,3.83389145,2406.8,2404.3,0.20819]
[1769929708835,3.62590145,2406.8,2405.6,2.09461729]
[1769929709238,3.62590145,2406.8,2405.7,2.09461729]
[1769929709432,3.62590145,2406.8,2405.6,2.09461729]
[1769929709843,3.62590145,2406.8,2405.7,2.09461729]
[1769929710032,3.86427074,2406.3,2404.2,4.16]
[1769929710231,0.20804,2406.1,2404.3,3.81972291]
[1769929710437,0.20804,2406.1,2404.7,3.81972291]
[1769929710636,2.44,2406.6,2405.2,3.81972291]
[1769929710838,3.86423074,2406.8,2405.2,3.81972291]
[1769929711039,2.44,2406.7,2405.4,3.81972291]
[1769929711242,2.44313072,2406.7,2405.4,3.8232645]
[1769929711442,2.44313072,2406.7,2405.5,3.81972291]
[1769929711639,3.68822913,2406.7,2404.6,3.81972291]
[1769929711843,2.14661953,2405.6,2403.8,3.81972291]
[1769929712043,2.14661953,2405.8,2403.8,3.81972291]
[1769929712342,4.53342499,2406.4,2404.1,4.02793291]
[1769929712644,8.69342499,2407.1,2404.7,4.02788291]
[1769929712840,4.16,2407.1,2404.9,4.02786291]
[1769929713144,0.20795,2407.2,2405.2,3.81972291]
[1769929713342,0.20795,2407.2,2405.4,3.81972291]
[1769929714844,0.20795,2407.2,2405.5,0.07232664]
[1769929715045,0.20795,2407.2,2405.6,3.81972291]
[1769929715736,2.14661953,2407.4,2405.6,3.81972291]
[1769929717645,0.20792,2407.5,2405.6,3.81972291]
[1769929717845,2.0682569,2407.7,2405.6,3.81972291]
[1769929718047,2.0682569,2408.0,2405.6,4.02780291]
[1769929718543,2.07269051,2408.0,2405.8,4.03525549]
[1769929718746,2.07269051,2408.0,2405.8,4.03864231]
[1769929719149,3.59266875,2407.9,2405.8,4.03864231]
[1769929719343,2.07269051,2408.0,2405.8,4.03864231]
[1769929719547,2.07269051,2408.0,2406.0,4.03525549]
[1769929719950,0.00443361,2408.0,2406.0,4.24330549]
[1769929720548,0.00443361,2408.0,2406.2,4.03525549]
[1769929720853,2.0684974,2408.9,2406.8,4.24323549]
[1769929721151,2.0684974,2408.9,2407.0,4.03525549]